[Event "FIDE WSTC Open 50 2025"]
[Site "Prague"]
[Date "2025.02.17"]
[Round "1.25"]
[White "Lima, Darcy"]
[Black "Haba, Petr"]
[Result "1-0"]
[Annotator "ChessBase"]
[ECO "A11"]
[WhiteElo "2378"]
[BlackElo "2442"]
[PlyCount "133"]
[EventDate "2025.02.17"]
[EventType "team-tourn"]
[EventCountry "CZE"]
[SourceTitle "playchess.com"]
[Source "ChessBase"]
[SourceQuality "1"]
[TimeControl "40/5400+30:1800+30"]

1. c4 {[%emt 0:00:05]} c6 {[%emt 0:00:18]} 2. Nf3 {[%emt 0:00:36]} d5 {[%emt 0:00:05]} 3. g3 {[%emt 0:00:09]} dxc4 {[%emt 0:00:06]} 4. Bg2 {[%emt 0:00:39]} Nd7 {[%emt 0:00:05]} 5. Na3 {[%emt 0:00:23]} Nb6 {[%emt 0:00:59]} 6. Qc2 {[%emt 0:00:32]} g6 {[%emt 0:00:27]} 7. Nxc4 {[%emt 0:01:06]} Nxc4 {[%emt 0:01:42]} 8. Qxc4 {[%emt 0:00:10]} Bg7 {[%emt 0:00:04]} 9. d4 {[%emt 0:02:42]} Nf6 {[%emt 0:01:15]} 10. O-O {[%emt 0:06:29]} O-O {[%emt 0:00:14]} 11. Re1 {[%emt 0:05:24]} Ne4 {[%emt 0:11:40]} 12. Qc2 Nd6 {[%emt 0:01:39]} 13. Bf4 {[%emt 0:06:25]} Nb5 {[%emt 0:03:35]} 14. Rad1 {[%emt 0:02:02]} Bf5 {[%emt 0:00:16]} 15. e4 {[%emt 0:06:34]} Bg4 {[%emt 0:00:14]} 16. d5 {[%emt 0:01:27]} Bxf3 {[%emt 0:12:50]} 17. Bxf3 {[%emt 0:00:09]} Nd4 {[%emt 0:00:04]} 18. Qd3 {[%emt 0:00:16]} cxd5 {[%emt 0:00:23]} 19. exd5 {[%emt 0:01:03]} Nxf3+ {[%emt 0:01:45]} 20. Qxf3 {[%emt 0:00:06]} Qd7 {[%emt 0:00:03]} 21. Be5 {[%emt 0:08:17]} Rfe8 {[%emt 0:06:25]} 22. Bxg7 {[%emt 0:06:15]} Kxg7 {[%emt 0:00:21]} 23. Re5 {[%emt 0:00:14]} Rad8 {[%emt 0:03:26]} 24. Rde1 {[%emt 0:01:09]} Qd6 {[%emt 0:02:25]} 25. h4 {[%emt 0:04:22]} Qf6 {[%emt 0:06:33]} 26. Qe3 {[%emt 0:00:49]} a6 {[%emt 0:00:54]} 27. h5 {[%emt 0:01:11]} gxh5 {[%emt 0:04:38]} 28. Rxh5 {[%emt 0:08:20]} h6 {[%emt 0:01:40]} 29. Kg2 {[%emt 0:03:45]} Rd6 30. Reh1 {[%emt 0:03:58]} Rh8 {[%emt 0:03:56]} 31. R1h4 {[%emt 0:03:22]} Kf8 {[%emt 0:03:57]} 32. b4 {[%emt 0:06:28]} Qb2 {[%emt 0:09:35]} 33. Rc4 {[%emt 0:11:47]} Qf6 {[%emt 0:06:27]} 34. Rc7 {[%emt 0:04:06]} Rg8 {[%emt 0:04:28]} 35. Re5 {[%emt 0:05:51]} Rg5 {[%emt 0:00:18]} 36. f4 {[%emt 0:01:08]} Rxd5 {[%emt 0:01:22]} 37. Rexe7 {[%emt 0:00:46]} Rgf5 {[%emt 0:04:58]} 38. Rxf7+ {[%emt 0:00:42]} Qxf7 {[%emt 0:00:05]} 39. Rxf7+ {[%emt 0:00:01]} Rxf7 {[%emt 0:01:21]} 40. Qe6 {[%emt 0:00:02]} Rd2+ {[%emt 0:00:28]} 41. Kh3 {[%emt 0:31:29]} Kg7 {[%emt 0:31:34]} 42. f5 {[%emt 0:00:00]} Rdd7 {[%emt 0:00:00]} 43. Kg4 {[%emt 0:00:00]} Rc7 {[%emt 0:00:00]} 44. Qg6+ {[%emt 0:00:00]} Kf8 {[%emt 0:00:00]} 45. Qxh6+ {[%emt 0:00:00]} Kg8 {[%emt 0:00:00]} 46. Qe6 {[%emt 0:00:00]} Rce7 {[%emt 0:00:00]} 47. Qc8+ {[%emt 0:00:00]} Kh7 {[%emt 0:00:00]} 48. Kf4 {[%emt 0:00:00]} Re1 {[%emt 0:00:00]} 49. Qc4 {[%emt 0:00:00]} Rd7 {[%emt 0:00:00]} 50. g4 {[%emt 0:00:00]} Red1 {[%emt 0:00:00]} 51. Ke5 {[%emt 0:00:00]} b5 {[%emt 0:01:39]} 52. Qc6 {[%emt 0:01:41]} Re7+ {[%emt 0:00:36]} 53. Kf6 {[%emt 0:01:08]} Rg7 {[%emt 0:00:25]} 54. Qg2 {[%emt 0:01:37]} Rd6+ {[%emt 0:04:05]} 55. Ke5 {[%emt 0:00:05]} Rh6 {[%emt 0:00:03]} 56. Qg3 Re7+ {[%emt 0:00:55]} 57. Kd5 {[%emt 0:03:00]} Rd7+ {[%emt 0:02:12]} 58. Kc5 {[%emt 0:00:00]} Rf6 {[%emt 0:00:36]} 59. Qh3+ {[%emt 0:00:20]} Rh6 {[%emt 0:00:39]} 60. Qg3 {[%emt 0:00:01]} Rf6 {[%emt 0:00:05]} 61. Qf4 {[%emt 0:00:42]} Rdf7 {[%emt 0:00:07]} 62. Kd5 {[%emt 0:00:15]} Kg7 {[%emt 0:00:09]} 63. Qe5 {[%emt 0:00:59]} Kf8 {[%emt 0:00:03]} 64. Qb8+ {[%emt 0:00:31]} Kg7 {[%emt 0:00:06]} 65. Qe5 {[%emt 0:00:16]} Kf8 {[%emt 0:00:01]} 66. Qc3 {[%emt 0:00:55]} Ke7 {[%emt 0:02:40]} 67. Ke5 {[%emt 0:00:56]} 1-0

[Event "FIDE WSTC Open 50 2025"]
[Site "Prague"]
[Date "2025.02.17"]
[Round "1.26"]
[White "Jirovsky, Milos"]
[Black "Peixoto, Rudson Marinho"]
[Result "1-0"]
[Annotator "ChessBase"]
[ECO "A14"]
[WhiteElo "2410"]
[BlackElo "1948"]
[PlyCount "85"]
[EventDate "2025.02.17"]
[EventType "team-tourn"]
[EventCountry "CZE"]
[SourceTitle "playchess.com"]
[Source "ChessBase"]
[SourceQuality "1"]
[TimeControl "40/5400+30:1800+30"]

1. Nf3 {[%emt 0:00:02]} Nf6 {[%emt 0:00:29]} 2. c4 {[%emt 0:00:06]} e6 {[%emt 0:00:48]} 3. g3 {[%emt 0:00:06]} d5 {[%emt 0:00:09]} 4. Bg2 {[%emt 0:00:08]} Be7 {[%emt 0:00:12]} 5. O-O {[%emt 0:00:26]} O-O {[%emt 0:00:05]} 6. Qc2 {[%emt 0:00:26]} Nc6 {[%emt 0:01:17]} 7. d4 {[%emt 0:00:34]} h6 {[%emt 0:00:20]} 8. Rd1 {[%emt 0:00:19]} Bd7 {[%emt 0:02:09]} 9. Nbd2 {[%emt 0:00:47]} Nb4 {[%emt 0:09:04]} 10. Qb1 {[%emt 0:01:39]} a5 {[%emt 0:06:28]} 11. a3 {[%emt 0:01:38]} Na6 {[%emt 0:00:09]} 12. Ne5 {[%emt 0:03:02]} Be8 {[%emt 0:00:36]} 13. b3 {[%emt 0:04:37]} c5 {[%emt 0:04:37]} 14. Bb2 {[%emt 0:01:34]} Qb6 {[%emt 0:00:18]} 15. cxd5 {[%emt 0:02:11]} exd5 {[%emt 0:00:13]} 16. dxc5 {[%emt 0:00:38]} Bxc5 {[%emt 0:01:50]} 17. Nd3 {[%emt 0:00:17]} Bd4 {[%emt 0:01:51]} 18. Bxd4 {[%emt 0:01:40]} Qxd4 {[%emt 0:00:15]} 19. Nf4 {[%emt 0:00:34]} Nc7 {[%emt 0:08:58]} 20. Ne4 {[%emt 0:07:06]} Qe5 {[%emt 0:04:50]} 21. Nxf6+ {[%emt 0:01:17]} Qxf6 {[%emt 0:00:11]} 22. Nxd5 {[%emt 0:00:45]} Nxd5 {[%emt 0:00:22]} 23. Bxd5 {[%emt 0:00:09]} Bc6 {[%emt 0:00:03]} 24. Bxc6 {[%emt 0:00:26]} Qxc6 {[%emt 0:00:08]} 25. Qf5 {[%emt 0:00:16]} Qb6 {[%emt 0:01:24]} 26. Rd3 {[%emt 0:01:00]} Rfe8 {[%emt 0:02:00]} 27. e3 {[%emt 0:03:43]} g6 {[%emt 0:00:16]} 28. Qf4 {[%emt 0:01:49]} Rad8 {[%emt 0:00:19]} 29. Rad1 {[%emt 0:00:43]} h5 {[%emt 0:00:53]} 30. Qa4 {[%emt 0:01:42]} Kf8 {[%emt 0:03:59]} 31. b4 {[%emt 0:07:45]} axb4 {[%emt 0:00:25]} 32. Rxd8 {[%emt 0:02:05]} Rxd8 {[%emt 0:00:10]} 33. Qxb4+ {[%emt 0:01:20]} Qxb4 {[%emt 0:00:11]} 34. Rxd8+ {[%emt 0:00:12]} Ke7 {[%emt 0:00:07]} 35. axb4 {[%emt 0:00:05]} Kxd8 {[%emt 0:00:09]} 36. Kf1 {[%emt 0:00:06]} Kc7 {[%emt 0:00:09]} 37. Ke2 {[%emt 0:00:07]} Kb6 {[%emt 0:00:11]} 38. Kd3 {[%emt 0:00:06]} Kb5 {[%emt 0:00:11]} 39. Kc3 {[%emt 0:00:07]} f5 {[%emt 0:01:19]} 40. h4 {[%emt 0:00:24]} Kc6 {[%emt 0:01:51]} 41. Kc4 {[%emt 0:30:09]} b5+ {[%emt 0:30:32]} 42. Kd4 {[%emt 0:00:09]} Kd6 {[%emt 0:00:14]} 43. f3 {[%emt 0:00:05]} 1-0

[Event "FIDE WSTC Open 50 2025"]
[Site "Prague"]
[Date "2025.02.17"]
[Round "1.27"]
[White "Franca Junior, Jairo"]
[Black "Zvara, Petr"]
[Result "0-1"]
[Annotator "ChessBase"]
[ECO "B17"]
[WhiteElo "1898"]
[BlackElo "2330"]
[PlyCount "138"]
[EventDate "2025.02.17"]
[EventType "team-tourn"]
[EventCountry "CZE"]
[SourceTitle "playchess.com"]
[Source "ChessBase"]
[SourceQuality "1"]
[TimeControl "40/5400+30:1800+30"]

1. e4 {[%emt 0:00:07]} c6 {[%emt 0:00:10]} 2. d4 {[%emt 0:00:07]} d5 {[%emt 0:00:08]} 3. Nc3 {[%emt 0:00:21]} dxe4 {[%emt 0:00:22]} 4. Nxe4 {[%emt 0:00:15]} Nd7 {[%emt 0:00:37]} 5. Nf3 {[%emt 0:02:38]} Ngf6 {[%emt 0:00:09]} 6. Nxf6+ {[%emt 0:00:37]} Nxf6 {[%emt 0:00:06]} 7. Bd3 {[%emt 0:00:15]} Bg4 {[%emt 0:02:04]} 8. c3 {[%emt 0:00:10]} e6 {[%emt 0:00:15]} 9. h3 {[%emt 0:00:33]} Bh5 {[%emt 0:01:31]} 10. Qe2 {[%emt 0:00:37]} Qd5 {[%emt 0:06:37]} 11. Bf4 {[%emt 0:01:54]} Bxf3 {[%emt 0:03:58]} 12. Qxf3 {[%emt 0:01:32]} Qxf3 {[%emt 0:00:07]} 13. gxf3 {[%emt 0:00:17]} Be7 {[%emt 0:09:14]} 14. Rg1 {[%emt 0:04:17]} g6 {[%emt 0:00:07]} 15. O-O-O {[%emt 0:03:53]} Nd5 {[%emt 0:07:16]} 16. Be5 {[%emt 0:01:06]} Bf6 {[%emt 0:02:16]} 17. Rge1 {[%emt 0:05:04]} Bxe5 {[%emt 0:05:01]} 18. Rxe5 {[%emt 0:00:59]} O-O-O {[%emt 0:02:05]} 19. a3 {[%emt 0:03:13]} Rd7 {[%emt 0:00:34]} 20. h4 {[%emt 0:03:02]} h5 {[%emt 0:01:01]} 21. Ree1 {[%emt 0:02:22]} Rhd8 {[%emt 0:02:23]} 22. Bf1 Kc7 23. Kc2 {[%emt 0:04:17]} b6 {[%emt 0:03:33]} 24. Bc4 {[%emt 0:18:24]} Ne7 {[%emt 0:04:38]} 25. Bd3 {[%emt 0:03:28]} c5 {[%emt 0:04:34]} 26. dxc5 {[%emt 0:00:53]} bxc5 {[%emt 0:00:04]} 27. Re4 {[%emt 0:09:02]} Nf5 {[%emt 0:07:41]} 28. Ra4 {[%emt 0:02:09]} Kb6 {[%emt 0:02:50]} 29. Ra6+ {[%emt 0:03:31]} Kb7 {[%emt 0:00:05]} 30. Ra4 {[%emt 0:00:09]} Kb8 {[%emt 0:02:27]} 31. Be2 {[%emt 0:01:21]} Rxd1 {[%emt 0:02:30]} 32. Bxd1 {[%emt 0:00:11]} Rd5 {[%emt 0:02:23]} 33. Be2 {[%emt 0:01:48]} Nd6 {[%emt 0:06:20]} 34. f4 {[%emt 0:07:31]} Nf5 {[%emt 0:01:40]} 35. Bf3 {[%emt 0:07:33]} Rd7 {[%emt 0:00:18]} 36. Ra5 {[%emt 0:01:40]} Rc7 {[%emt 0:00:08]} 37. Kd3 {[%emt 0:01:42]} Nxh4 {[%emt 0:02:47]} 38. Be4 {[%emt 0:02:20]} Nf5 {[%emt 0:02:08]} 39. b4 {[%emt 0:01:14]} Rd7+ {[%emt 0:11:21]} 40. Ke2 {[%emt 0:00:55]} cxb4 {[%emt 0:00:35]} 41. axb4 {[%emt 0:32:46]} Nd6 {[%emt 0:30:06]} 42. Bc6 {[%emt 0:00:00]} Rc7 {[%emt 0:00:00]} 43. Ra6 {[%emt 0:00:00]} Nc8 {[%emt 0:00:00]} 44. Kd3 {[%emt 0:00:00]} Ne7 {[%emt 0:00:00]} 45. Be4 {[%emt 0:00:00]} Rd7+ {[%emt 0:00:00]} 46. Ke2 {[%emt 0:00:00]} Nd5 {[%emt 0:00:00]} 47. Bxd5 {[%emt 0:00:00]} Rxd5 {[%emt 0:00:00]} 48. Ke3 {[%emt 0:00:00]} Kb7 {[%emt 0:00:00]} 49. Ra1 {[%emt 0:00:00]} a6 {[%emt 0:00:00]} 50. c4 {[%emt 0:00:00]} Rd8 {[%emt 0:00:00]} 51. Ra3 {[%emt 0:00:00]} Rd1 {[%emt 0:00:00]} 52. Rb3 {[%emt 0:00:00]} Kb6 {[%emt 0:00:00]} 53. Ke4 {[%emt 0:00:00]} Re1+ {[%emt 0:00:00]} 54. Kd4 {[%emt 0:01:02]} Re2 {[%emt 0:00:00]} 55. b5 {[%emt 0:00:34]} axb5 {[%emt 0:00:00]} 56. Rxb5+ {[%emt 0:00:41]} Kc6 {[%emt 0:00:00]} 57. f3 {[%emt 0:01:04]} Rf2 {[%emt 0:02:09]} 58. Ke3 {[%emt 0:01:57]} Rf1 {[%emt 0:00:06]} 59. Ra5 {[%emt 0:00:40]} h4 {[%emt 0:01:23]} 60. Ke2 {[%emt 0:02:39]} Rc1 {[%emt 0:00:18]} 61. Kd3 {[%emt 0:01:07]} h3 {[%emt 0:00:28]} 62. Ra2 {[%emt 0:00:11]} Rh1 {[%emt 0:00:08]} 63. Ke3 h2 64. Re2 {[%emt 0:05:17]} Kc5 {[%emt 0:00:39]} 65. Ke4 {[%emt 0:01:09]} Kxc4 {[%emt 0:03:51]} 66. Rc2+ {[%emt 0:01:21]} Kb3 {[%emt 0:00:05]} 67. Re2 {[%emt 0:00:06]} Kc3 {[%emt 0:00:19]} 68. Ke5 {[%emt 0:00:32]} Kd3 {[%emt 0:00:08]} 69. Re4 {[%emt 0:00:36]} Ra1 {[%emt 0:00:14]} 0-1

[Event "FIDE WSTC Open 50 2025"]
[Site "Prague"]
[Date "2025.02.17"]
[Round "1.28"]
[White "Konopka, Michal"]
[Black "Serafim Junior, Arnor"]
[Result "1-0"]
[Annotator "ChessBase"]
[ECO "E68"]
[WhiteElo "2326"]
[BlackElo "1782"]
[PlyCount "55"]
[EventDate "2025.02.17"]
[EventType "team-tourn"]
[EventCountry "CZE"]
[SourceTitle "playchess.com"]
[Source "ChessBase"]
[SourceQuality "1"]
[TimeControl "40/5400+30:1800+30"]

1. Nf3 {[%emt 0:00:08]} Nf6 {[%emt 0:00:10]} 2. c4 {[%emt 0:00:20]} g6 {[%emt 0:00:12]} 3. g3 {[%emt 0:00:20]} Bg7 {[%emt 0:00:07]} 4. Bg2 {[%emt 0:00:02]} O-O {[%emt 0:03:28]} 5. O-O {[%emt 0:00:15]} d6 {[%emt 0:00:12]} 6. d4 {[%emt 0:00:11]} Nbd7 {[%emt 0:00:58]} 7. Nc3 {[%emt 0:00:20]} e5 {[%emt 0:02:15]} 8. e4 {[%emt 0:00:49]} Re8 {[%emt 0:01:09]} 9. h3 {[%emt 0:02:11]} a6 {[%emt 0:02:49]} 10. Re1 {[%emt 0:04:11]} Rb8 {[%emt 0:00:54]} 11. a4 {[%emt 0:07:05]} exd4 {[%emt 0:05:25]} 12. Nxd4 {[%emt 0:00:34]} Nc5 {[%emt 0:00:59]} 13. a5 {[%emt 0:07:34]} h6 {[%emt 0:10:30]} 14. f3 {[%emt 0:10:06]} Bd7 {[%emt 0:09:18]} 15. Be3 {[%emt 0:00:57]} Ne6 {[%emt 0:06:59]} 16. Nde2 {[%emt 0:03:17]} Bc6 {[%emt 0:06:32]} 17. Qd2 {[%emt 0:00:57]} Kh7 {[%emt 0:00:22]} 18. b4 {[%emt 0:00:43]} Bd7 {[%emt 0:13:35]} 19. Ra2 {[%emt 0:05:35]} Qe7 {[%emt 0:06:51]} 20. Rc2 {[%emt 0:04:36]} c6 {[%emt 0:00:29]} 21. Rcc1 {[%emt 0:10:14]} Red8 {[%emt 0:01:53]} 22. Bb6 {[%emt 0:01:30]} Rdc8 {[%emt 0:00:48]} 23. Rcd1 {[%emt 0:00:54]} Ne8 {[%emt 0:00:32]} 24. c5 {[%emt 0:04:40]} Bf8 {[%emt 0:04:15]} 25. cxd6 {[%emt 0:03:29]} Qf6 {[%emt 0:05:39]} 26. f4 {[%emt 0:00:48]} N6g7 {[%emt 0:03:28]} 27. e5 {[%emt 0:00:27]} Qe6 {[%emt 0:00:06]} 28. Nd4 {[%emt 0:03:00]} 1-0

[Event "FIDE WSTC Open 50 2025"]
[Site "Prague"]
[Date "2025.02.17"]
[Round "1.29"]
[White "Bischoff, Klaus"]
[Black "Rogowski, Jaroslaw"]
[Result "1-0"]
[Annotator "ChessBase"]
[ECO "D51"]
[WhiteElo "2432"]
[BlackElo "2039"]
[PlyCount "49"]
[EventDate "2025.02.17"]
[EventType "team-tourn"]
[EventCountry "CZE"]
[SourceTitle "playchess.com"]
[Source "ChessBase"]
[SourceQuality "1"]
[TimeControl "40/5400+30:1800+30"]

1. d4 {[%emt 0:00:07]} d5 {[%emt 0:00:07]} 2. c4 {[%emt 0:00:11]} e6 {[%emt 0:00:07]} 3. Nc3 {[%emt 0:00:13]} Nf6 {[%emt 0:00:11]} 4. Bg5 {[%emt 0:00:37]} Nbd7 {[%emt 0:01:01]} 5. cxd5 {[%emt 0:00:44]} exd5 {[%emt 0:00:03]} 6. e3 {[%emt 0:00:13]} c6 {[%emt 0:00:33]} 7. Bd3 {[%emt 0:00:24]} Be7 {[%emt 0:04:22]} 8. h3 {[%emt 0:01:16]} Nf8 {[%emt 0:02:14]} 9. Qc2 {[%emt 0:05:10]} Ne6 {[%emt 0:14:55]} 10. Bh4 {[%emt 0:00:25]} g6 {[%emt 0:04:25]} 11. Nf3 {[%emt 0:02:27]} O-O {[%emt 0:05:22]} 12. O-O-O {[%emt 0:01:29]} Nd7 {[%emt 0:17:39]} 13. Bg3 {[%emt 0:02:24]} f5 {[%emt 0:02:32]} 14. Kb1 {[%emt 0:07:01]} b5 15. h4 {[%emt 0:05:47]} Nf6 {[%emt 0:17:06]} 16. Ne5 {[%emt 0:03:27]} Bd7 {[%emt 0:00:01]} 17. h5 {[%emt 0:01:42]} Be8 {[%emt 0:06:38]} 18. hxg6 {[%emt 0:00:28]} hxg6 {[%emt 0:00:03]} 19. Ne2 {[%emt 0:04:00]} Rc8 {[%emt 0:01:06]} 20. Nf4 {[%emt 0:00:42]} Nxf4 {[%emt 0:01:46]} 21. Bxf4 {[%emt 0:00:13]} Nh5 {[%emt 0:11:06]} 22. Bh6 {[%emt 0:01:59]} Rf6 {[%emt 0:00:21]} 23. g4 {[%emt 0:00:59]} fxg4 {[%emt 0:02:53]} 24. Bxg6 {[%emt 0:02:55]} Bxg6 {[%emt 0:05:42]} 25. Nxg6 {[%emt 0:00:07]} 1-0

[Event "FIDE WSTC Open 50 2025"]
[Site "Prague"]
[Date "2025.02.17"]
[Round "1.30"]
[White "Ograbek, Grzegorz"]
[Black "Schulz, Klaus-Juergen"]
[Result "0-1"]
[Annotator "RC"]
[ECO "D20"]
[WhiteElo "2085"]
[BlackElo "2345"]
[PlyCount "164"]
[EventDate "2025.02.17"]
[EventType "team-tourn"]
[EventCountry "CZE"]
[SourceTitle "playchess.com"]
[Source "ChessBase"]
[SourceQuality "1"]
[TimeControl "40/5400+30:1800+30"]

1. d4 {[%emt 0:00:04]} d5 {[%emt 0:02:27]} 2. c4 {[%emt 0:00:37]} dxc4 {[%emt 0:01:11]} 3. e3 {[%emt 0:00:38]} Nf6 {[%emt 0:00:12]} 4. Bxc4 {[%emt 0:00:21]} e6 {[%emt 0:00:15]} 5. Nf3 {[%emt 0:00:29]} a6 {[%emt 0:00:32]} 6. a4 {[%emt 0:03:32]} c5 {[%emt 0:04:10]} 7. O-O {[%emt 0:00:16]} Nc6 {[%emt 0:00:19]} 8. Qe2 {[%emt 0:00:39]} Qc7 {[%emt 0:01:12]} 9. Rd1 {[%emt 0:00:58]} Be7 {[%emt 0:02:07]} 10. Nc3 {[%emt 0:00:49]} O-O {[%emt 0:02:36]} 11. e4 {[%emt 0:23:48]} Ng4 {[%emt 0:15:47]} 12. g3 {[%emt 0:45:51]} cxd4 {[%emt 0:28:24]} 13. Bf4 {[%emt 0:12:27]} e5 {[%emt 0:15:25]} 14. Nd5 {[%emt 0:00:08]} Qd8 {[%emt 0:00:57]} 15. Bd2 {[%emt 0:02:17]} Nf6 {[%emt 0:01:30]} 16. a5 {[%emt 0:01:06]} Bg4 {[%emt 0:00:23]} 17. Qd3 {[%emt 0:00:32]} Bd6 {[%emt 0:05:36]} 18. Rdc1 {[%emt 0:01:01]} Rb8 {[%emt 0:03:43]} 19. Ne1 {[%emt 0:02:22]} Nxd5 {[%emt 0:00:37]} 20. exd5 {[%emt 0:01:11]} Ne7 {[%emt 0:00:26]} 21. f3 {[%emt 0:00:30]} Bf5 {[%emt 0:01:07]} 22. Qe2 {[%emt 0:00:19]} Re8 {[%emt 0:01:20]} 23. Nd3 {[%emt 0:00:14]} Ng6 {[%emt 0:01:14]} 24. Nf2 {[%emt 0:00:37]} Bd7 {[%emt 0:02:06]} 25. Ne4 {[%emt 0:00:32]} Bf8 {[%emt 0:00:34]} 26. Bg5 {[%emt 0:00:28]} Be7 {[%emt 0:01:41]} 27. Bd2 {[%emt 0:00:51]} h6 {[%emt 0:00:26]} 28. g4 {[%emt 0:01:04]} Bf8 {[%emt 0:02:11]} 29. Kh1 {[%emt 0:00:10]} Kh7 {[%emt 0:00:33]} 30. Ng3 {[%emt 0:00:12]} Nf4 {[%emt 0:00:55]} 31. Qe4+ {[%emt 0:00:36]} Ng6 {[%emt 0:00:44]} 32. Re1 {[%emt 0:00:15]} Bb5 {[%emt 0:01:15]} 33. Bxb5 {[%emt 0:00:32]} axb5 34. a6 {[%emt 0:00:07]} Qb6 {[%emt 0:01:45]} 35. Ba5 {[%emt 0:00:21]} Qd6 {[%emt 0:01:50]} 36. Nf5 {[%emt 0:00:20]} Qd7 {[%emt 0:00:28]} 37. a7 {[%emt 0:00:14]} Ra8 {[%emt 0:00:52]} 38. Bb6 {[%emt 0:00:16]} Rec8 {[%emt 0:00:30]} 39. Rec1 {[%emt 0:00:30]} Rc4 {[%emt 0:00:56]} 40. b3 {[%emt 0:00:10]} Rc3 {[%emt 0:00:15]} 41. f4 {[%emt 0:31:40]} exf4 {[%emt 0:31:31]} 42. Bxd4 {[%emt 0:00:08]} Re8 {[%emt 0:00:00]} 43. Qg2 {[%emt 0:00:00]} f3 {[%emt 0:00:00]} 44. Qf2 {[%emt 0:00:00]} Rxc1+ {[%emt 0:00:00]} 45. Rxc1 {[%emt 0:00:00]} Qxd5 {[%emt 0:00:00]} 46. Be3 {[%emt 0:00:00]} Ne5 {[%emt 0:00:00]} 47. Rf1 {[%emt 0:00:00]} Nxg4 {[%emt 0:00:00]} 48. Qxf3 {[%emt 0:00:05]} Nxe3 {[%emt 0:00:00]} 49. Nxe3 {[%emt 0:01:00]} Qxf3+ {[%emt 0:00:00]} 50. Rxf3 {[%emt 0:00:07]} Bc5 {[%emt 0:00:00]} 51. Nd5 {[%emt 0:01:07]} Bxa7 {[%emt 0:00:58]} 52. Rxf7 {[%emt 0:00:08]} Re5 {[%emt 0:00:27]} 53. Rd7 {[%emt 0:02:06]} Bc5 {[%emt 0:01:01]} 54. Kg2 {[%emt 0:00:51]} b4 {[%emt 0:00:49]} 55. Kf3 {[%emt 0:00:10]} b6 {[%emt 0:00:32]} 56. Nf6+ {[%emt 0:01:18]} Kg6 {[%emt 0:00:18]} 57. Ne4 {[%emt 0:00:04]} Rf5+ {[%emt 0:00:19]} 58. Kg2 {[%emt 0:00:20]} Rf4 {[%emt 0:00:25]} 59. Ng3 {[%emt 0:01:25]} Rf2+ {[%emt 0:00:31]} 60. Kh3 {[%emt 0:00:27]} Rc2 {[%emt 0:00:28]} 61. Ne4 {[%emt 0:00:29]} Kf5 {[%emt 0:00:52]} 62. Ng3+ {[%emt 0:00:37]} Kg6 {[%emt 0:00:15]} 63. Ne4 {[%emt 0:00:16]} Re2 {[%emt 0:00:11]} 64. Nd2 {[%emt 0:01:09]} Kf6 {[%emt 0:01:02]} 65. Nc4 {[%emt 0:00:33]} Bg1 {[%emt 0:00:31]} 66. Rd6+ {[%emt 0:01:01]} Ke7 {[%emt 0:00:11]} 67. Rg6 {[%emt 0:00:28]} Rxh2+ {[%emt 0:01:09]} 68. Kg3 {[%emt 0:00:04]} Rc2 {[%emt 0:00:19]} 69. Rxg7+ {[%emt 0:00:24]} Kf6 {[%emt 0:00:07]} 70. Rd7 {[%emt 0:00:33]} Bc5 {[%emt 0:00:58]} 71. Nxb6 {[%emt 0:01:00]} Bxb6 72. Rd6+ {[%emt 0:00:07]} Kg5 {[%emt 0:01:11]} 73. Rxb6 {[%emt 0:00:06]} Rc3+ {[%emt 0:00:03]} 74. Kf2 {[%emt 0:01:31]} Rxb3 {[%emt 0:00:05]} 75. Kg2 {[%emt 0:00:19]} h5 {[%emt 0:00:11]} 76. Rb8 {[%emt 0:00:08]} h4 {[%emt 0:00:35]} 77. Rg8+ {[%emt 0:00:37]} Kf4 {[%emt 0:00:08]} 78. Rh8 {[%emt 0:00:15]} h3+ {[%emt 0:00:45]} 79. Kh2 {[%emt 0:00:11]} Ke4 {[%emt 0:00:41]} 80. Rh4+ {[%emt 0:01:14]} Kd5 {[%emt 0:01:12]} 81. Rh5+ {[%emt 0:00:54]} Kc4 {[%emt 0:00:13]} 82. Rh4+ {[%emt 0:00:14]} Kb5 {[%emt 0:00:09]} 0-1